fUST/lending_fUST_20240601
["ID","MTS","AMOUNT","RATE_DAILY","PERIOD"]
[328359814,1717239045303,-160.95884677,0.00019469,2]
[328359816,1717239045314,-500.0,0.00019469,2]
[328359818,1717239045324,-500.0,0.00019469,2]
[328359820,1717239045334,-451.52224408,0.00019469,2]
[328359822,1717239045343,-500.0,0.00019469,2]
[328359824,1717239045356,-294.72155608,0.00019469,2]
[328359831,1717239046135,-205.27844392,0.00019469,2]
[328359832,1717239046144,-500.0,0.00019469,2]
[328359833,1717239046154,-500.0,0.00019469,2]
[328359834,1717239046164,-500.0,0.00019469,2]
[328359835,1717239046174,-500.0,0.00019469,2]
[328359836,1717239046183,-500.0,0.00019469,2]
[328359837,1717239046192,-500.0,0.00019469,2]
[328359838,1717239046202,-500.0,0.00019469,2]
[328359839,1717239046213,-500.0,0.00019469,2]
[328359840,1717239046222,-500.0,0.00019469,2]
[328359841,1717239046232,-500.0,0.00019469,2]
[328359842,1717239046241,-500.0,0.00019469,2]
[328359843,1717239046251,-500.0,0.00019469,2]
[328359844,1717239046262,-500.0,0.00019469,2]
[328359845,1717239046274,-432.69020086,0.00019469,2]
[328359846,1717239046283,-500.0,0.00019469,2]
[328359847,1717239046293,-500.0,0.00019469,2]
[328359848,1717239046303,-500.0,0.00019469,2]
[328359855,1717239046438,-500.0,0.00019469,2]
[328359856,1717239046456,-500.0,0.00019469,2]
[328359857,1717239046465,-155.6708386,0.0001947,2]
[328359858,1717239046475,-7144.83474819,0.0001947,7]
[328359859,1717239046484,-336.112496,0.0001947,2]
[328359860,1717239046494,-336.112496,0.0001947,2]
[328359861,1717239046503,-336.112496,0.0001947,2]
[328359863,1717239046512,-336.112496,0.0001947,2]
[328359864,1717239046522,-2677.956175,0.0001947,2]
[328359865,1717239046531,-2677.956175,0.0001947,2]
[328359866,1717239046540,-2677.956175,0.0001947,2]
[328359867,1717239046549,-2677.956175,0.0001947,2]
[328359868,1717239046559,-151.0,0.0001947,2]
[328359869,1717239046569,-151.0,0.0001947,2]
[328359870,1717239046578,-367.615948,0.0001947,2]
[328359871,1717239046588,-367.615948,0.0001947,2]
[328359872,1717239046598,-367.615948,0.0001947,2]
[328359873,1717239046607,-367.615948,0.0001947,2]
[328359874,1717239046616,-151.0,0.0001947,2]
[328359875,1717239046625,-151.0,0.0001947,2]
[328359876,1717239046635,-151.0,0.0001947,2]
[328359877,1717239046644,-151.0,0.0001947,2]
[328359878,1717239046653,-151.0,0.0001947,2]
[328359879,1717239046662,-163.847406,0.0001947,2]
[328359880,1717239046671,-151.0,0.0001947,2]
[328359881,1717239046681,-151.0,0.0001947,2]
[328359882,1717239046690,-151.0,0.0001947,2]
[328359883,1717239046699,-198.691375,0.0001947,2]
[328359884,1717239046709,-1784.98809,0.00019471,2]
[328359885,1717239046718,-1784.98809,0.00019471,2]
[328359886,1717239046727,-1784.98809,0.00019471,2]
[328359887,1717239046736,-1784.98809,0.00019471,2]
[328359888,1717239046745,-1784.98809,0.00019471,2]
[328359889,1717239046755,-1784.98809,0.00019471,2]
[328359890,1717239046764,-151.0,0.00019471,2]
[328359891,1717239046776,-398.42147,0.00019471,2]
[328359892,1717239046786,-398.42147,0.00019471,2]
[328359893,1717239046795,-398.42147,0.00019471,2]
[328359894,1717239046805,-398.42147,0.00019471,2]
[328359895,1717239046816,-398.42147,0.00019471,2]
[328359896,1717239046825,-398.42147,0.00019471,2]
[328359897,1717239046834,-398.42147,0.00019471,2]
[328359898,1717239046844,-398.42147,0.00019471,2]
[328359899,1717239046853,-398.42147,0.00019471,2]
[328359900,1717239046862,-398.42147,0.00019471,2]
[328359901,1717239046872,-336.112496,0.00019471,2]
[328359902,1717239046881,-151.0,0.00019471,2]
[328359903,1717239046890,-151.0,0.00019471,2]
[328359904,1717239046899,-151.0,0.00019471,2]
[328359905,1717239046909,-336.112496,0.00019471,2]
[328359906,1717239046918,-151.0,0.00019471,2]
[328359907,1717239046927,-151.0,0.00019471,2]
[328359908,1717239046936,-2677.956175,0.00019471,2]
[328359909,1717239046945,-2677.956175,0.00019471,2]
[328359910,1717239046954,-151.0,0.00019471,2]
[328359911,1717239046964,-367.615948,0.00019471,2]
[328359912,1717239046973,-367.615948,0.00019471,2]
[328359913,1717239046984,-151.0,0.00019471,2]
[328359914,1717239046993,-151.0,0.00019471,2]
[328359915,1717239047002,-254.30812518,0.00019472,2]
[328359916,1717239047011,-151.0,0.00019472,2]
[328359917,1717239047020,-151.710281,0.00019472,2]
[328359918,1717239047030,-151.0,0.00019472,2]
[328359919,1717239047040,-151.0,0.00019472,2]
[328359920,1717239047049,-151.0,0.00019472,2]
[328359921,1717239047058,-252.734104,0.00019472,2]
[328359922,1717239047069,-151.0,0.00019472,2]
[328359923,1717239047079,-151.0,0.00019472,2]
[328359924,1717239047089,-2437.560889,0.00019472,2]
[328359925,1717239047098,-2437.560889,0.00019472,2]
[328359926,1717239047107,-2437.560889,0.00019472,2]
[328359927,1717239047115,-2437.560889,0.00019472,2]
[328359928,1717239047124,-151.0,0.00019472,2]
[328359929,1717239047133,-151.0,0.00019472,2]
[328359930,1717239047142,-151.547111,0.00019472,2]
[328359931,1717239047151,-151.0,0.00019472,2]
[328359932,1717239047160,-151.0,0.00019472,2]
[328359933,1717239047169,-151.0,0.00019472,2]
[328359934,1717239047179,-289.857713,0.00019472,2]
[328359935,1717239047188,-151.0,0.00019472,2]
[328359936,1717239047197,-151.0,0.00019472,2]
[328359937,1717239047209,-151.0,0.00019472,2]
[328359938,1717239047219,-151.0,0.00019472,2]
[328359939,1717239047228,-151.0,0.00019472,2]
[328359940,1717239047239,-151.0,0.00019472,2]
[328359941,1717239047248,-151.0,0.00019472,2]
[328359942,1717239047257,-151.0,0.00019472,2]
[328359943,1717239047267,-151.0,0.00019472,2]
[328359944,1717239047282,-151.0,0.00019472,2]
[328359945,1717239047291,-151.0,0.00019472,2]
[328359946,1717239047301,-151.0,0.00019472,2]
[328359947,1717239047310,-151.0,0.00019472,2]
[328359948,1717239047321,-151.0,0.00019472,2]
[328359949,1717239047330,-151.0,0.00019472,2]
[328359950,1717239047340,-398.42147,0.00019472,2]
[328359951,1717239047353,-398.42147,0.00019472,2]
[328359952,1717239047363,-336.112496,0.00019472,2]
[328359953,1717239047374,-336.112496,0.00019472,2]
[328359954,1717239047383,-155.149692,0.00019472,2]
[328359955,1717239047393,-2677.956175,0.00019472,2]
[328359956,1717239047401,-2677.956175,0.00019472,2]
[328359957,1717239047411,-151.0,0.00019472,2]
[328359958,1717239047420,-367.615948,0.00019472,2]
[328359959,1717239047430,-367.615948,0.00019472,2]
[328359960,1717239047440,-151.0,0.00019472,2]
[328359961,1717239047450,-151.0,0.00019472,2]
[328359962,1717239047459,-492.802708,0.00019473,2]
[328359963,1717239047468,-492.802708,0.00019473,2]
[328359964,1717239047478,-492.802708,0.00019473,2]
[328359965,1717239047487,-492.802708,0.00019473,2]
[328359966,1717239047497,-492.802708,0.00019473,2]
[328359967,1717239047506,-492.802708,0.00019473,2]
[328359968,1717239047515,-492.802708,0.00019473,2]
[328359969,1717239047524,-492.802708,0.00019473,2]
[328359970,1717239047534,-492.802708,0.00019473,2]
[328359971,1717239047543,-492.802708,0.00019473,2]
[328359972,1717239047553,-492.802708,0.00019473,2]
[328359973,1717239047563,-492.802708,0.00019473,2]
[328359974,1717239047572,-151.0,0.00019473,2]
[328359975,1717239047581,-151.0,0.00019473,2]
[328359976,1717239047591,-153.250624,0.00019473,2]
[328359977,1717239047600,-151.0,0.00019473,2]
[328359978,1717239047609,-151.0,0.00019473,2]
[328359979,1717239047619,-2437.560889,0.00019473,2]
[328359980,1717239047628,-2437.560889,0.00019473,2]
[328359981,1717239047639,-2437.560889,0.00019473,2]
[328359982,1717239047649,-2437.560889,0.00019473,2]
[328359983,1717239047658,-151.0,0.00019473,2]
[328359984,1717239047668,-151.0,0.00019473,2]
[328359985,1717239047678,-151.0,0.00019473,2]
[328359986,1717239047688,-151.0,0.00019473,2]
[328359987,1717239047698,-151.0,0.00019473,2]
[328359988,1717239047707,-151.0,0.00019473,2]
[328359989,1717239047717,-1784.98809,0.00019473,2]
[328359990,1717239047729,-1784.98809,0.00019473,2]
[328359991,1717239047739,-1784.98809,0.00019473,2]
[328359992,1717239047749,-1784.98809,0.00019473,2]
[328359993,1717239047758,-1784.98809,0.00019473,2]
[328359994,1717239047767,-1784.98809,0.00019473,2]
[328359995,1717239047776,-398.42147,0.00019473,2]
[328359996,1717239047786,-398.42147,0.00019473,2]
[328359997,1717239047795,-398.42147,0.00019473,2]
[328359998,1717239047804,-398.42147,0.00019473,2]
[328359999,1717239047814,-336.112496,0.00019473,2]
[328360000,1717239047824,-336.112496,0.00019473,2]
[328360001,1717239047834,-336.112496,0.00019473,2]
[328360002,1717239047843,-336.112496,0.00019473,2]
[328360003,1717239047852,-336.112496,0.00019473,2]
[328360004,1717239047863,-336.112496,0.00019473,2]
[328360005,1717239047872,-2677.956175,0.00019473,2]
[328360006,1717239047882,-2677.956175,0.00019473,2]
[328360007,1717239047892,-2677.956175,0.00019473,2]
[328360008,1717239047981,-2677.956175,0.00019473,2]
[328360009,1717239047990,-2677.956175,0.00019473,2]
[328360010,1717239047999,-2677.956175,0.00019473,2]
[328360011,1717239048009,-151.0,0.00019473,2]
[328360012,1717239048020,-151.0,0.00019473,2]
[328360013,1717239048030,-151.0,0.00019473,2]
[328360014,1717239048040,-367.615948,0.00019473,2]
[328360015,1717239048049,-367.615948,0.00019473,2]
[328360016,1717239048059,-367.615948,0.00019473,2]
[328360017,1717239048069,-367.615948,0.00019473,2]
[328360018,1717239048078,-367.615948,0.00019473,2]
[328360019,1717239048087,-367.615948,0.00019473,2]
[328360020,1717239048097,-151.0,0.00019473,2]
[328360021,1717239048108,-151.0,0.00019473,2]
[328360022,1717239048119,-151.0,0.00019473,2]
[328360023,1717239048128,-151.0,0.00019473,2]
[328360024,1717239048140,-151.0,0.00019473,2]
[328360025,1717239048149,-492.802708,0.00019477,2]
[328360026,1717239048159,-492.802708,0.00019477,2]
[328360027,1717239048168,-151.0,0.00019477,2]
[328360028,1717239048179,-2437.560889,0.00019477,2]
[328360029,1717239048188,-2437.560889,0.00019477,2]
[328360030,1717239048200,-236.025422,0.00019477,2]
[328360031,1717239048209,-151.0,0.00019477,2]
[328360032,1717239048218,-151.0,0.00019477,2]
[328360033,1717239048227,-151.0,0.00019477,2]
[328360034,1717239048236,-156.000653,0.00019477,2]
[328360035,1717239048245,-1784.98809,0.00019477,2]
[328360036,1717239048254,-1784.98809,0.00019477,2]
[328360037,1717239048263,-1784.98809,0.00019477,2]
[328360038,1717239048278,-1784.98809,0.00019477,2]
[328360039,1717239048287,-398.42147,0.00019477,2]
[328360040,1717239048296,-398.42147,0.00019477,2]
[328360041,1717239048306,-398.42147,0.00019477,2]
[328360042,1717239048316,-398.421478,0.00019477,2]
[328360043,1717239048326,-336.112496,0.00019477,2]
[328360044,1717239048335,-336.112496,0.00019477,2]
[328360045,1717239048344,-336.112496,0.00019477,2]
[328360046,1717239048356,-336.112496,0.00019477,2]
[328360047,1717239048366,-2677.956175,0.00019477,2]
[328360048,1717239048375,-2677.956175,0.00019477,2]
[328360049,1717239048385,-2677.956175,0.00019477,2]
[328360050,1717239048394,-2677.956175,0.00019477,2]
[328360051,1717239048404,-272.757014,0.00019477,2]
[328360052,1717239048414,-367.615948,0.00019477,2]
[328360053,1717239048424,-367.615948,0.00019477,2]
[328360054,1717239048434,-367.615948,0.00019477,2]
[328360055,1717239048444,-367.615948,0.00019477,2]
[328360056,1717239048453,-151.0,0.00019477,2]
[328360057,1717239048462,-151.0,0.00019477,2]
[328360058,1717239048472,-151.0,0.00019477,2]
[328360059,1717239048481,-59500.20595982,0.00019477,2]
[328360060,1717239048491,-179.63075911,0.00019481,2]
[328360061,1717239048500,-353.79315532,0.00019481,2]
[328360062,1717239048509,-529.21320198,0.00019481,2]
[328360063,1717239048518,-155.60955386,0.00019481,2]
[328360064,1717239048528,-10214.72701007,0.00019483,2]
[328360065,1717239048537,-161.01767511,0.00019484,2]
[328360066,1717239048547,-393.05389491,0.000203,2]
[328360067,1717239048556,-379.07648152,0.00020456,2]
[328360068,1717239048566,-308.8927497,0.0002063,2]
[328360069,1717239048575,-254.03417928,0.00021,2]
[328360070,1717239048585,-1000.0,0.00021,5]
[328360071,1717239048594,-6422.57728028,0.00021005,2]
[328360072,1717239048603,-297.85907121,0.00021005,2]
[328360073,1717239048613,-155.28573855,0.00021005,2]
[328360074,1717239048622,-658.9724785,0.00021005,2]
[328360075,1717239048632,-237.5246987,0.00021005,2]
[328360076,1717239048641,-151.0,0.00021005,2]
[328360077,1717239048650,-2437.560889,0.00021005,2]
[328360078,1717239048659,-2437.560889,0.00021005,2]
[328360079,1717239048669,-151.0,0.00021005,2]
[328360080,1717239048678,-1784.98809,0.00021005,2]
[328360081,1717239048687,-1784.98809,0.00021005,2]
[328360082,1717239048696,-336.112496,0.00021005,2]
[328360083,1717239048705,-336.112495,0.00021005,2]
[328360084,1717239048714,-2677.956175,0.00021005,2]
[328360085,1717239048723,-2677.956167,0.00021005,2]
[328360086,1717239048732,-367.615948,0.00021005,2]
[328360087,1717239048741,-367.615941,0.00021005,2]
[328360088,1717239048750,-151.0,0.00021005,2]
[328360089,1717239048759,-239.79198288,0.00021006,2]
[328360090,1717239048768,-418.98703288,0.00021006,2]
[328360091,1717239048777,-374.01648635,0.00021006,2]
[328360092,1717239048787,-542.24251016,0.00021006,2]
[328360093,1717239048796,-2055.38952583,0.00021006,2]
[328360094,1717239048805,-479.50100152,0.00021006,2]
[328360095,1717239048814,-286.87277054,0.00021006,2]
[328360096,1717239048824,-164.71763311,0.00021006,2]
[328360097,1717239048834,-642.15807754,0.00021006,2]
[328360098,1717239048843,-492.802708,0.00021006,2]
[328360099,1717239048853,-492.802708,0.00021006,2]
[328360100,1717239048862,-155.37154821,0.0002101,2]
[328360101,1717239048871,-497.0,0.00021013,2]
[328360102,1717239048880,-150.0,0.00021013,2]
[328360103,1717239048890,-295.305,0.00021325,2]
[328360104,1717239048899,-379.07648152,0.0002155,2]
[328360105,1717239048909,-16286.49892307,0.00021788,3]
[328360106,1717239048919,-492.802708,0.00021788,2]
[328360107,1717239048931,-492.802708,0.00021788,2]
[328360108,1717239048940,-151.0,0.00021788,2]
[328360109,1717239048951,-2437.560889,0.00021788,2]
[328360110,1717239048961,-2437.560889,0.00021788,2]
[328360111,1717239048970,-1784.98809,0.00021788,2]
[328360112,1717239048979,-1784.988096,0.00021788,2]
[328360113,1717239048990,-9411.65266598,0.00021887,2]
[328360114,1717239048999,-10521.89740744,0.00021888,2]
[328360115,1717239049008,-380.0,0.00021888,2]
[328360116,1717239049018,-9571.24046118,0.00021888,2]
[328360117,1717239049028,-1352.23991412,0.00021888,2]
[328360118,1717239049038,-614.15980497,0.00021888,2]
[328360119,1717239049047,-1874.29056679,0.00021888,2]
[328360120,1717239049056,-155.03501168,0.00021888,2]
[328360121,1717239049066,-225.09954874,0.00021888,2]
[328360122,1717239049075,-247.13560012,0.00021888,2]
[328360123,1717239049084,-994.77076108,0.00021888,2]
[328360124,1717239049093,-1645.31884095,0.00021888,2]
[328360125,1717239049103,-1947.58872333,0.00021888,2]
[328360126,1717239049115,-173.03270584,0.00021888,2]
[328360127,1717239049124,-393.10916144,0.00021888,2]
[328360128,1717239049134,-280.71103706,0.00021888,2]
[328360129,1717239049144,-157.78759954,0.00021888,2]
[328360130,1717239049154,-160.86708549,0.00021888,2]
[328360131,1717239049163,-238.7558683,0.00021888,2]
[328360132,1717239049172,-155.20119616,0.00021888,2]
[328360133,1717239049181,-274.92390662,0.00021888,2]
[328360134,1717239049190,-155.07161278,0.00021888,2]
[328360135,1717239049200,-492.802708,0.00021888,2]
[328360136,1717239049210,-492.80270393,0.00021888,2]
[328360137,1717239049219,-199.31962517,0.00021888,2]
[328360138,1717239049228,-151.0,0.00021888,2]
[328360139,1717239049238,-2437.560889,0.00021888,2]
[328360140,1717239049248,-2437.560889,0.00021888,2]
[328360141,1717239049258,-316.39320639,0.00021889,2]
[328360142,1717239049268,-155.09842705,0.00021889,2]
[328360143,1717239049282,-10372.13944499,0.00021889,2]
[328360144,1717239049291,-953.4673207,0.00021889,2]
[328360145,1717239049300,-3000.0,0.00021889,2]
[328360146,1717239049312,-3000.0,0.00021889,2]
[328360147,1717239049399,-1719.65675883,0.00021889,2]
[328360148,1717239049408,-151.0,0.00021889,2]
[328360149,1717239049417,-2437.560889,0.00021889,2]
[328360150,1717239049426,-2437.560889,0.00021889,2]
[328360151,1717239049436,-242042.0,0.0002189,2]
[328360152,1717239049445,-151.0,0.0002189,2]
[328360153,1717239049454,-2437.560889,0.0002189,2]
[328360154,1717239049464,-2437.560896,0.0002189,2]
[328360155,1717239049473,-282.0,0.000219,2]
[328360156,1717239049482,-565.0,0.000219,2]
[328360157,1717239049491,-611.0,0.000219,2]
[328360158,1717239049500,-5328.42618995,0.00021915,2]
[328360159,1717239049508,-309.68167653,0.00021915,2]
[328360160,1717239049518,-237.88936422,0.00021915,2]
[328360161,1717239049528,-162.56235232,0.00021915,2]
[328360162,1717239049537,-191.12013137,0.00021915,2]
[328360163,1717239049547,-272.23220278,0.00021915,2]
[328360164,1717239049556,-269.18424421,0.00021915,7]
[328360165,1717239049566,-500.0,0.00021917,2]
[328360166,1717239049575,-500.0,0.00021917,2]
[328360167,1717239049583,-500.0,0.00021917,2]
[328360168,1717239049592,-500.0,0.00021917,2]
[328360169,1717239049602,-500.0,0.00021917,2]
[328360170,1717239049611,-500.0,0.00021917,2]
[328360171,1717239049620,-500.0,0.00021917,2]
[328360172,1717239049629,-500.0,0.00021917,2]
[328360173,1717239049639,-513.77,0.00021917,2]
[328360174,1717239049648,-500.0,0.00021917,2]
[328360175,1717239049656,-559.74756138,0.00021917,2]
[328360176,1717239049666,-733.22,0.00021917,2]
[328360177,1717239049675,-500.0,0.00021917,2]
[328360178,1717239049684,-634.59,0.00021917,2]
[328360179,1717239049693,-500.0,0.00021917,2]
[328360180,1717239049702,-500.0,0.00021917,2]
[328360181,1717239049710,-500.0,0.00021917,2]
[328360182,1717239049719,-500.0,0.00021917,2]
[328360183,1717239049729,-500.0,0.00021917,2]
[328360184,1717239049738,-500.0,0.00021917,2]
[328360185,1717239049747,-645.21876079,0.00021917,2]
[328360186,1717239049756,-174.6205898,0.00021917,2]
[328360187,1717239049765,-500.0,0.00021917,2]
[328360188,1717239049774,-1057.19,0.00021917,2]
[328360189,1717239049783,-635.05,0.00021917,2]
[328360190,1717239049792,-500.0,0.00021917,2]
[328360191,1717239049801,-500.0,0.00021917,2]
[328360192,1717239049810,-500.0,0.00021917,2]
[328360193,1717239049820,-500.0,0.00021917,2]
[328360194,1717239049829,-500.0,0.00021917,2]
[328360195,1717239049838,-500.0,0.00021917,2]
[328360196,1717239049847,-500.0,0.00021917,2]
[328360197,1717239049856,-207.95745383,0.00021917,2]
[328360198,1717239049865,-500.0,0.00021917,2]
[328360199,1717239049874,-635.19,0.00021917,2]
[328360200,1717239049882,-500.0,0.00021917,2]
[328360201,1717239049891,-500.0,0.00021917,2]
[328360202,1717239049901,-500.0,0.00021917,2]
[328360203,1717239049910,-513.76237331,0.00021917,2]
[328360204,1717239049919,-601.58,0.00021917,2]
[328360205,1717239049928,-500.0,0.00021917,2]
[328360206,1717239049937,-576.87,0.00021917,2]
[328360207,1717239049947,-500.0,0.00021917,2]
[328360208,1717239049956,-500.0,0.00021917,2]
[328360209,1717239049965,-500.0,0.00021917,2]
[328360210,1717239049975,-500.0,0.00021917,2]
[328360211,1717239049984,-500.0,0.00021917,2]
[328360212,1717239049993,-500.0,0.00021917,2]
[328360213,1717239050002,-500.0,0.00021917,2]
[328360214,1717239050011,-500.0,0.00021917,2]
[328360215,1717239050021,-500.0,0.00021917,2]
[328360216,1717239050030,-523.95,0.00021917,2]
[328360217,1717239050039,-928.26,0.00021917,2]
[328360218,1717239050048,-500.0,0.00021917,2]
[328360219,1717239050058,-619.49,0.00021917,2]
[328360220,1717239050069,-1184.0,0.00021917,2]
[328360221,1717239050077,-500.0,0.00021917,2]
[328360222,1717239050086,-158.96697756,0.00021917,2]
[328360223,1717239050095,-500.0,0.00021917,2]
[328360224,1717239050105,-500.0,0.00021917,2]
[328360225,1717239050114,-500.0,0.00021917,2]
[328360226,1717239050123,-429.59078279,0.00021917,2]
[328360227,1717239050132,-500.0,0.00021917,2]
[328360228,1717239050141,-500.0,0.00021917,2]
[328360229,1717239050151,-500.0,0.00021917,2]
[328360230,1717239050160,-500.0,0.00021917,2]
[328360231,1717239050169,-500.0,0.00021917,2]
[328360232,1717239050178,-1010.76,0.00021917,2]
[328360233,1717239050188,-500.0,0.00021917,2]
[328360234,1717239050196,-500.0,0.00021917,2]
[328360235,1717239050208,-500.0,0.00021917,2]
[328360236,1717239050217,-500.0,0.00021917,2]
[328360237,1717239050226,-400.25014676,0.00021917,2]
[328360238,1717239050235,-687.76,0.00021917,2]
[328360239,1717239050245,-500.0,0.00021917,2]
[328360240,1717239050254,-379.98437396,0.00021917,2]
[328360241,1717239050264,-707.96,0.00021917,2]
[328360242,1717239050275,-500.0,0.00021917,2]
[328360243,1717239050285,-500.0,0.00021917,2]
[328360244,1717239050294,-500.0,0.00021917,2]
[328360245,1717239050304,-500.0,0.00021917,2]
[328360246,1717239050314,-500.0,0.00021917,2]
[328360247,1717239050325,-500.0,0.00021917,2]
[328360248,1717239050335,-589.54373129,0.00021917,2]
[328360249,1717239050344,-500.0,0.00021917,2]
[328360250,1717239050356,-500.0,0.00021917,2]
[328360251,1717239050366,-507.47828853,0.00021917,2]
[328360252,1717239050376,-500.0,0.00021917,2]
[328360253,1717239050385,-500.0,0.00021917,2]
[328360254,1717239050394,-500.0,0.00021917,2]
[328360255,1717239050403,-500.0,0.00021917,2]
[328360256,1717239050412,-405.11438587,0.00021917,2]
[328360257,1717239050421,-516.24682085,0.00021917,2]
[328360258,1717239050430,-500.0,0.00021917,2]
[328360259,1717239050440,-500.0,0.00021917,2]
[328360260,1717239050450,-500.0,0.00021917,2]
[328360261,1717239050460,-500.0,0.00021917,2]
[328360262,1717239050469,-500.0,0.00021917,2]
[328360263,1717239050478,-256.76552277,0.00021917,2]
[328360264,1717239050487,-316.03613428,0.00021917,2]
[328360265,1717239050496,-501.23250287,0.00021917,2]
[328360266,1717239050505,-500.0,0.00021917,2]
[328360267,1717239050515,-504.96090253,0.00021917,2]
[328360268,1717239050524,-500.0,0.00021917,2]
[328360269,1717239050534,-500.0,0.00021917,2]
[328360270,1717239050543,-500.0,0.00021917,2]
[328360271,1717239050552,-395.06421142,0.00021917,2]
[328360272,1717239050562,-500.0,0.00021917,2]
[328360273,1717239050572,-500.0,0.00021917,2]
[328360274,1717239050582,-500.0,0.00021917,2]
[328360275,1717239050667,-1453.87,0.00021917,2]
[328360276,1717239050678,-500.0,0.00021917,2]
[328360277,1717239050688,-500.0,0.00021917,2]
[328360278,1717239050697,-500.0,0.00021917,2]
[328360279,1717239050706,-500.0,0.00021917,2]
[328360280,1717239050716,-500.0,0.00021917,2]
[328360281,1717239050725,-704.96,0.00021917,2]
[328360282,1717239050734,-500.0,0.00021917,2]
[328360283,1717239050743,-949.22,0.00021917,2]
[328360284,1717239050752,-607.91,0.00021917,2]
[328360285,1717239050762,-660.12,0.00021917,2]
[328360286,1717239050771,-1000.0,0.00021917,2]
[328360287,1717239050779,-500.0,0.00021917,2]
[328360288,1717239050788,-500.0,0.00021917,2]
[328360289,1717239050797,-523.37022865,0.00021917,2]
[328360290,1717239050807,-500.0,0.00021917,2]
[328360291,1717239050815,-500.0,0.00021917,2]
[328360292,1717239050826,-344.91788166,0.00021917,2]
[328360293,1717239050835,-500.0,0.00021917,2]
[328360294,1717239050845,-500.0,0.00021917,2]
[328360295,1717239050856,-2206.57,0.00021917,2]
[328360296,1717239050865,-441.25705241,0.00021917,2]
[328360297,1717239050875,-927.85,0.00021917,2]
[328360298,1717239050884,-500.0,0.00021917,2]
[328360299,1717239050893,-598.95,0.00021917,2]
[328360300,1717239050902,-500.0,0.00021917,2]
[328360301,1717239050911,-253.86330479,0.00021917,2]
[328360302,1717239050920,-500.0,0.00021917,2]
[328360303,1717239050930,-500.0,0.00021917,2]
[328360304,1717239050939,-312.80389994,0.00021917,2]
[328360305,1717239050948,-1267.13,0.00021917,2]
[328360306,1717239050957,-500.0,0.00021917,2]
[328360307,1717239050967,-642.44,0.00021917,2]
[328360308,1717239050976,-697.05,0.00021917,2]
[328360309,1717239050985,-573.81515532,0.00021917,2]
[328360310,1717239050994,-500.0,0.00021917,2]
[328360311,1717239051004,-223.40910143,0.00021917,2]
[328360312,1717239051013,-500.0,0.00021917,2]
[328360313,1717239051022,-700.07,0.00021917,2]
[328360314,1717239051031,-740.74,0.00021917,2]
[328360315,1717239051040,-500.0,0.00021917,2]
[328360316,1717239051049,-599.47,0.00021917,2]
[328360317,1717239051059,-500.0,0.00021917,2]
[328360318,1717239051069,-500.0,0.00021917,2]
[328360319,1717239051079,-779.59,0.00021917,2]
[328360320,1717239051088,-516.17389832,0.00021917,2]
[328360321,1717239051097,-1213.97,0.00021917,2]
[328360322,1717239051106,-500.0,0.00021917,2]
[328360323,1717239051116,-500.0,0.00021917,2]
[328360324,1717239051125,-635.13,0.00021917,2]
[328360325,1717239051134,-536.43776564,0.00021917,2]
[328360326,1717239051143,-3658.25,0.00021917,2]
[328360327,1717239051152,-636.66,0.00021917,2]
[328360328,1717239051162,-500.0,0.00021917,2]
[328360329,1717239051171,-500.0,0.00021917,2]
[328360330,1717239051180,-500.0,0.00021917,2]
[328360331,1717239051190,-500.0,0.00021917,2]